[Event "85th Armenian Mens-ch 2024"]
[Site "Yerevan"]
[Date "2024.11.27"]
[Round "11.1"]
[White "Hakobyan, Erik"]
[Black "Sargsyan, Sargis Vach."]
[Result "1/2-1/2"]
[ECO "D37"]
[WhiteElo "2409"]
[BlackElo "2321"]
[Annotator "RC"]
[PlyCount "86"]
[EventDate "2024.11.24"]
[EventCountry "ARM"]
[SourceTitle "playchess.com"]
[Source "ChessBase"]
[SourceQuality "1"]
[TimeControl "40/5400+30:1800+30"]

1. d4 {[%emt 0:02:50]} Nf6 {[%emt 0:00:05]} 2. c4 {[%emt 0:00:21]} e6 {[%emt 0:00:04]} 3. Nf3 {[%emt 0:00:12]} d5 {[%emt 0:00:06]} 4. Nc3 {[%emt 0:00:20]} Be7 {[%emt 0:00:05]} 5. Bf4 {[%emt 0:00:06]} O-O {[%emt 0:00:04]} 6. e3 {[%emt 0:00:19]} c5 {[%emt 0:00:07]} 7. dxc5 {[%emt 0:00:06]} Bxc5 {[%emt 0:00:06]} 8. Qc2 {[%emt 0:00:07]} Nc6 {[%emt 0:00:03]} 9. Rd1 {[%emt 0:00:04]} Qa5 {[%emt 0:00:04]} 10. a3 {[%emt 0:00:03]} h6 {[%emt 0:00:03]} 11. Nd2 {[%emt 0:00:34]} d4 {[%emt 0:00:09]} 12. Nb3 {[%emt 0:00:28]} Qb6 {[%emt 0:00:04]} 13. Nxc5 {[%emt 0:00:16]} Qxc5 {[%emt 0:00:09]} 14. b4 {[%emt 0:00:10]} Qe7 {[%emt 0:00:03]} 15. exd4 {[%emt 0:00:10]} a5 {[%emt 0:00:03]} 16. c5 {[%emt 0:00:22]} axb4 {[%emt 0:00:35]} 17. axb4 {[%emt 0:02:56]} Nd5 {[%emt 0:00:15]} 18. Bd6 {[%emt 0:00:17]} Qf6 {[%emt 0:00:04]} 19. Qd2 {[%emt 0:00:32]} Nxc3 {[%emt 0:00:04]} 20. Qxc3 {[%emt 0:00:31]} Ra2 {[%emt 0:00:05]} 21. Be2 {[%emt 0:12:32]} Re8 {[%emt 0:00:06]} 22. Be5 {[%emt 0:20:22]} Qf5 {[%emt 0:00:07]} 23. Bf3 {[%emt 0:01:33]} Bd7 {[%emt 0:00:10]} 24. O-O {[%emt 0:01:41]} Rea8 {[%emt 0:00:01]} 25. Qe1 {[%emt 0:01:25]} Nxe5 {[%emt 0:11:40]} 26. Qxe5 {[%emt 0:00:28]} Qxe5 {[%emt 0:00:04]} 27. dxe5 {[%emt 0:00:05]} Bc6 {[%emt 0:00:02]} 28. Bxc6 {[%emt 0:06:36]} bxc6 {[%emt 0:00:04]} 29. g3 {[%emt 0:00:22]} Rb8 {[%emt 0:01:01]} 30. Rd4 {[%emt 0:00:21]} Rb2 {[%emt 0:01:40]} 31. Ra1 {[%emt 0:00:38]} R2xb4 {[%emt 0:01:38]} 32. Rxb4 {[%emt 0:00:47]} Rxb4 {[%emt 0:00:04]} 33. Ra6 {[%emt 0:00:16]} Re4 {[%emt 0:01:06]} 34. f4 {[%emt 0:00:12]} g5 {[%emt 0:00:04]} 35. Rxc6 {[%emt 0:08:19]} gxf4 {[%emt 0:00:04]} 36. Rc8+ {[%emt 0:00:07]} Kg7 {[%emt 0:00:04]} 37. gxf4 {[%emt 0:00:03]} Rxf4 {[%emt 0:04:38]} 38. c6 {[%emt 0:00:09]} Rc4 {[%emt 0:00:04]} 39. c7 {[%emt 0:00:20]} Rc2 {[%emt 0:00:03]} 40. h4 {[%emt 0:00:00]} Kh7 {[%emt 0:00:00]} 41. Kf1 {[%emt 0:00:15]} Kg7 {[%emt 0:00:14]} 42. Ke1 {[%emt 0:00:04]} Rc5 {[%emt 0:00:05]} 43. Kf2 {[%emt 0:00:34]} Rc3 {[%emt 0:01:30]} 1/2-1/2

[Event "85th Armenian Mens-ch 2024"]
[Site "Yerevan"]
[Date "2024.12.04"]
[Round "11.1"]
[White "Hakobyan, Erik"]
[Black "Sargsyan, Sargis Vach."]
[Result "1/2-1/2"]
[ECO "C54"]
[WhiteElo "2409"]
[BlackElo "2321"]
[Annotator "TA"]
[PlyCount "36"]
[EventDate "2024.11.24"]
[EventCountry "ARM"]
[SourceTitle "playchess.com"]
[Source "ChessBase"]
[SourceQuality "1"]
[TimeControl "40/5400+30:1800+30"]

{[%evp 11,36,0,0,-31,0,0,35,29,23,15,33,40,40,46,61,20,17,0,8,0,0,0,0,0,0,0,0]} 1. e4 {[%emt 0:03:27]} e5 {[%emt 0:00:07]} 2. Nf3 {[%emt 0:00:05]} Nc6 {[%emt 0:00:05]} 3. Bc4 {[%emt 0:00:04]} Bc5 {[%emt 0:00:20]} 4. c3 {[%emt 0:00:06]} Nf6 {[%emt 0:00:05]} 5. d3 {[%emt 0:00:04]} O-O {[%emt 0:01:04]} 6. b4 {[%emt 0:00:05]} Be7 {[%emt 0:00:12]} 7. Bd2 {[%emt 0:00:31]} d6 {[%emt 0:02:00]} 8. h3 {[%emt 0:05:06]} Be6 {[%emt 0:02:30]} 9. Bxe6 {[%emt 0:01:06] White is slightly better.} fxe6 {[%emt 0:00:03]} 10. O-O {[%emt 0:00:50]} a5 {[%emt 0:01:43]} 11. b5 {[%emt 0:04:17]} Nb8 {[%emt 0:01:46]} 12. Re1 {[%emt 0:00:13]} Qe8 {[%emt 0:06:01]} 13. d4 {[%emt 0:18:51]} Qxb5 {[%emt 0:06:21] The position is equal.} 14. Na3 {[%emt 0:01:16]} Qc6 {[%emt 0:02:59]} 15. Qb3 {[%emt 0:25:37]} Nxe4 {[%emt 0:03:40][%cal Of8f3]} 16. Qxe6+ {[%emt 0:00:28]} Rf7 {[%emt 0:00:06][%cal Oe4d2]} 17. d5 {[%emt 0:03:47] Some like it hot} Qa4 {[%emt 0:00:05][%cal Oe4c5] [#] White must now prevent ...Nc5!} 18. Qc8+ {[%emt 0:00:14]} Rf8 $1 {[%emt 0:00:05] Weighted Error Value: White=0.06 (flawless) /Black=0.10 (very precise) .  Inaccurate:     	White=1     	Black=2      OK:         	White=7     	Black=3      Best:        	---       	Black=2      Strong:       	---       	Black=1} 1/2-1/2

[Event "85th Armenian Mens-ch 2024"]
[Site "Yerevan"]
[Date "2024.12.04"]
[Round "11.2"]
[White "Piliposyan, Robert"]
[Black "Sukiasyan, Vahe A."]
[Result "1/2-1/2"]
[ECO "E72"]
[WhiteElo "2418"]
[BlackElo "2368"]
[Annotator "TA"]
[PlyCount "64"]
[EventDate "2024.11.24"]
[EventCountry "ARM"]
[SourceTitle "playchess.com"]
[Source "ChessBase"]
[SourceQuality "1"]
[TimeControl "40/5400+30:1800+30"]

{[%evp 17,64,21,36,26,97,88,89,92,79,80,120,114,124,135,141,75,66,99,100,98,71,80,84,89,159,160,170,176,172,175,224,204,325,285,558,72,81,-3,-9,-50,-57,-50,-50,-55,-24,-18,0,0,0]} 1. d4 {[%emt 0:00:13]} Nf6 {[%emt 0:00:05]} 2. c4 {[%emt 0:00:05]} g6 {[%emt 0:00:04]} 3. Nc3 {[%emt 0:00:04]} Bg7 {[%emt 0:00:05]} 4. e4 {[%emt 0:00:04]} d6 {[%emt 0:00:03]} 5. Nge2 {[%emt 0:00:04]} O-O {[%emt 0:00:07]} 6. h3 {[%emt 0:00:01]} a6 {[%emt 0:00:15]} 7. g3 {[%emt 0:00:05]} Nbd7 {[%emt 0:03:44]} 8. Bg2 {[%emt 0:00:57]} c6 {[%emt 0:01:37]} 9. O-O {[%emt 0:00:58]} e5 {[%emt 0:00:11]} 10. Be3 {[%emt 0:04:42]} b5 {[%emt 0:03:13]} (10... Re8 $11) 11. c5 $1 $16 {[%emt 0:09:08]} exd4 {[%emt 0:26:14]} 12. Nxd4 {[%emt 0:00:57]} Bb7 {[%emt 0:00:25]} 13. cxd6 {[%emt 0:08:31]} b4 {[%emt 0:00:38]} 14. Na4 {[%emt 0:02:06]} c5 {[%emt 0:05:28]} 15. Nb3 {[%emt 0:02:33]} Nxe4 {[%emt 0:04:35]} 16. Rc1 {[%emt 0:09:27]} (16. Naxc5 Nexc5 17. Nxc5 (17. Bxc5 Bxg2 18. Kxg2 Bxb2 $11) 17... Bxg2 18. Kxg2 Bxb2 $16) (16. Bxe4 Bxe4 17. Naxc5 (17. Bxc5 $2 Bc6 $19) 17... Nxc5 18. Nxc5) 16... Rc8 {[%emt 0:09:37]} 17. Nbxc5 {[%emt 0:26:21]} (17. Naxc5 Nexc5 18. Nxc5 Bxg2 19. Kxg2 Bxb2 $16) (17. Naxc5 {is interesting.} Nexc5 18. Nxc5 Bxg2 19. Kxg2 Bxb2 20. Rc2) 17... Nexc5 {[%emt 0:00:18]} 18. Nxc5 {[%emt 0:00:25]} Bxg2 {[%emt 0:00:39]} 19. Kxg2 {[%emt 0:00:04]} Bxb2 {[%emt 0:01:38]} 20. Rc2 $36 {[%emt 0:00:23][%mdl 2048] White is on the roll.} Bc3 {[%emt 0:03:54]} ({Black should play} 20... Nxc5 21. Rxc5 (21. Bxc5 Bc3 $14) 21... Rxc5 22. Bxc5 Qd7) 21. Nxa6 {[%emt 0:00:23] White has more active pieces.} Nf6 {[%emt 0:09:26]} 22. Nc5 {[%emt 0:06:09]} Rc6 {[%emt 0:03:46]} 23. d7 {[%emt 0:08:00]} Rc7 {[%emt 0:00:35]} (23... Qa8 $142 24. Nb7 Qxb7) 24. Bh6 $1 $18 {[%emt 0:03:09]} (24. Qf3 Nxd7 25. Nd3 Qe7 $14) 24... Qa8+ {[%emt 0:10:23]} (24... Rxc5 $142 25. Bxf8 Qa8+ (25... Rd5 26. Bxb4 Rxd1 27. Rxd1 $18) 26. Kg1 Rd5) 25. Kh2 {[%emt 0:04:11]} Rd8 $2 {[%emt 0:00:04] [#]} (25... Rxc5 {was necessary.} 26. Bxf8 Rd5 27. Bxb4 Rxd1 28. Rxd1 Nxd7) 26. Bg5 $1 {[%emt 0:02:20]} Qc6 $16 {[%emt 0:08:21]} 27. Bxf6 {[%emt 0:01:10]} ({White should try} 27. Qe2 $16 {[%cal Oa2a3] And now a3! would win.} Qxc5 28. Bxf6 Rdxd7 29. Rfc1) 27... Qxf6 $11 {[%emt 0:00:05]} 28. Qd5 {[%emt 0:01:31]} Qe7 $1 {[%emt 0:01:04] Wards off Re2} 29. Nb3 {[%emt 0:03:56]} Rcxd7 {[%emt 0:00:04]} 30. Qc4 {[%emt 0:00:38]} Rd3 {[%emt 0:01:15]} 31. a3 $1 {[%emt 0:00:53]} Rd1 {[%emt 0:02:46]} 32. axb4 {[%emt 0:01:11]} Rxf1 {[%emt 0:05:51]} 1/2-1/2

[Event "85th Armenian Mens-ch 2024"]
[Site "Yerevan"]
[Date "2024.12.04"]
[Round "11.3"]
[White "Gasparyan, Erik R."]
[Black "Pogosyan, Stefan"]
[Result "1/2-1/2"]
[ECO "C84"]
[WhiteElo "2371"]
[BlackElo "2407"]
[Annotator "TA"]
[PlyCount "76"]
[EventDate "2024.11.24"]
[EventCountry "ARM"]
[SourceTitle "playchess.com"]
[Source "ChessBase"]
[SourceQuality "1"]
[TimeControl "40/5400+30:1800+30"]

{[%evp 17,76,-1,15,18,2,0,0,0,0,0,8,11,15,15,14,0,0,-16,0,0,0,0,21,25,35,38,110,114,125,87,113,95,83,91,85,75,144,66,71,38,40,42,43,35,17,17,17,17,17,17,17,15,11,16,20,0,0,0,0,0,0]} 1. e4 {[%emt 0:00:05]} e5 {[%emt 0:12:14]} 2. Nf3 {[%emt 0:00:07]} Nc6 {[%emt 0:00:03]} 3. Bb5 {[%emt 0:00:08][%cal Bf1b5,Bb5a4,Ba4b3,Bb3a2][%mdl 32]} a6 {[%emt 0:00:04]} 4. Ba4 {[%emt 0:00:04]} Nf6 {[%emt 0:00:07]} 5. Nc3 {[%emt 0:00:16]} b5 {[%emt 0:05:20]} 6. Bb3 {[%emt 0:00:04]} Be7 {[%emt 0:00:06]} 7. O-O {[%emt 0:00:05]} d6 {[%emt 0:01:02]} 8. a4 {[%emt 0:01:49]} b4 {[%emt 0:10:02]} 9. Nd5 {[%emt 0:00:05]} Na5 {[%emt 0:02:00]} 10. Ba2 {[%emt 0:05:21]} c5 {[%emt 0:05:26]} 11. Nxf6+ {[%emt 0:16:29]} Bxf6 {[%emt 0:00:08]} 12. Bd5 {[%emt 0:00:07]} Rb8 {[%emt 0:01:35]} 13. d3 {[%emt 0:08:32]} Bb7 {[%emt 0:09:53]} 14. Bxb7 {[%emt 0:01:11]} Rxb7 {[%emt 0:00:13]} 15. Nd2 {[%emt 0:03:58]} O-O {[%emt 0:03:42]} 16. Nc4 {[%emt 0:01:47]} Nc6 {[%emt 0:04:20]} 17. b3 {[%emt 0:06:20]} d5 {[%emt 0:03:22]} 18. exd5 {[%emt 0:07:52]} Qxd5 {[%emt 0:00:07]} 19. Bb2 {[%emt 0:00:04]} Bg5 {[%emt 0:06:35]} 20. Qg4 {[%emt 0:11:06]} Bd8 {[%emt 0:08:53]} 21. Rae1 {[%emt 0:05:00]} Bc7 {[%emt 0:06:36]} (21... f5 $14 22. Qg3 (22. Qe2 Re7 $11) 22... f4) 22. Ne3 $36 {[%emt 0:01:16][%mdl 2048] Keeping Black busy.} Qd8 {[%emt 0:00:52]} 23. Qc4 {[%emt 0:00:22] White is more active.} Nd4 {[%emt 0:06:04]} 24. Qxc5 {[%emt 0:11:05]} Bd6 {[%emt 0:02:21][%cal Bc7d6,Bd6c5,Bc5d4][%mdl 32]} 25. Qd5 {[%emt 0:00:07]} Rd7 {[%emt 0:01:40]} 26. g3 {[%emt 0:03:05]} Qc8 {[%emt 0:02:29]} ({Better is} 26... Bb8 27. Qa8 Ba7 28. Qxd8 Rfxd8 (28... Nf3+ 29. Kh1 $16) 29. Bxd4 Bxd4) 27. Qh1 {[%emt 0:01:14]} (27. Bxd4 $16 exd4 28. Qxd4 Bxg3 29. Qxb4) 27... Bc5 $1 $14 {[%emt 0:01:00]} (27... Nxc2 $2 {perishes.} 28. Rc1 $18) 28. Bxd4 {[%emt 0:01:19]} Bxd4 {[%emt 0:00:06]} 29. Nc4 {[%emt 0:00:07]} Qc5 {[%emt 0:00:20]} 30. Re2 {[%emt 0:03:52]} f5 {[%emt 0:00:23]} 31. Qf3 {[%emt 0:02:18] The position is equal.} Re7 {[%emt 0:01:50]} 32. Kg2 {[%emt 0:03:09]} g6 {[%emt 0:01:50]} 33. Kh1 {[%emt 0:02:36]} Kg7 {[%emt 0:01:04]} 34. Qg2 {[%emt 0:02:52]} f4 {[%emt 0:00:11] [#] ...f3 would now be deadly.} 35. f3 {[%emt 0:02:03]} fxg3 {[%emt 0:00:05]} 36. Qxg3 {[%emt 0:00:24]} Rf5 {[%emt 0:01:50]} 37. Re4 {[%emt 0:00:19]} Ref7 {[%emt 0:02:55]} 38. Kg2 {[%emt 0:00:06]} Qe7 {[%emt 0:01:10] Weighted Error Value: White=0.08 (flawless) /Black=0.09 (flawless) .  Mistake:       	White=1     	Black=2      Inaccurate:     	White=2     	---        OK:         	White=10    	Black=14     Best:        	---       	Black=1      Strong:       	---       	Black=1} 1/2-1/2

[Event "85th Armenian Mens-ch 2024"]
[Site "Yerevan"]
[Date "2024.11.27"]
[Round "11.3"]
[White "Gasparyan, Erik R."]
[Black "Pogosyan, Stefan"]
[Result "*"]
[ECO "D85"]
[WhiteElo "2371"]
[BlackElo "2407"]
[Annotator "TA"]
[PlyCount "79"]
[EventDate "2024.11.24"]
[EventCountry "ARM"]
[SourceTitle "playchess.com"]
[Source "ChessBase"]
[SourceQuality "1"]
[TimeControl "40/5400+30:1800+30"]

{[%evp 19,79,0,4,7,25,37,35,24,26,20,20,7,7,10,10,14,14,13,6,-10,-10,-11,-10,-16,-20,-43,-46,-49,6,9,95,90,82,0,174,133,156,157,156,149,148,150,154,146,147,146,200,173,406,406,398,398,533,533,6212,666,29958,29972,29972,29971,29970,29975]} 1. d4 {[%emt 0:00:04]} Nf6 {[%emt 0:00:44]} 2. c4 {[%emt 0:00:06]} g6 {[%emt 0:02:51]} 3. Nc3 {[%emt 0:01:00]} d5 {[%emt 0:00:10]} 4. cxd5 {[%emt 0:09:09]} Nxd5 {[%emt 0:00:13]} 5. Bd2 {[%emt 0:00:03]} c5 {[%emt 0:00:07]} 6. e4 {[%emt 0:06:43]} Nxc3 {[%emt 0:00:13]} 7. Bxc3 {[%emt 0:00:04]} cxd4 {[%emt 0:00:04]} 8. Qxd4 {[%emt 0:06:14]} Qxd4 {[%emt 0:02:37]} 9. Bxd4 {[%emt 0:00:04]} f6 {[%emt 0:00:05]} 10. Bc4 {[%emt 0:17:47]} Nc6 {[%emt 0:04:09]} 11. Be3 {[%emt 0:04:25]} f5 {[%emt 0:27:38]} 12. Nf3 {[%emt 0:24:21]} Bg7 {[%emt 0:05:33]} 13. O-O-O {[%emt 0:05:51]} fxe4 {[%emt 0:09:15]} 14. Ng5 {[%emt 0:00:04]} Bg4 {[%emt 0:01:19]} 15. Rd2 {[%emt 0:22:05]} Ne5 {[%emt 0:08:53]} 16. Bd5 {[%emt 0:10:47]} O-O-O {[%emt 0:34:39]} 17. Kb1 {[%emt 0:03:39]} Kb8 {[%emt 0:07:20]} 18. h3 {[%emt 0:01:59]} Bf5 {[%emt 0:04:27]} 19. g4 {[%emt 0:04:54]} Bc8 {[%emt 0:02:59]} (19... Nd3 $6 20. Bb3 Bd7 21. Rhd1 $16 (21. Nxe4 Bc6 $11) (21. Nf7 Rdf8 $16)) 20. Rhd1 {[%emt 0:05:23]} (20. Bxe4 Rxd2 21. Bxd2 h6 $17) (20. Nxe4 h5 21. Ng3 hxg4 22. hxg4 Nxg4 (22... Rxh1+ 23. Bxh1 Rxd2 24. Bxd2 $17) 23. Rxh8 Rxh8 24. Bf4+ Ka8) 20... h6 {[%emt 0:02:59]} 21. Nxe4 {[%emt 0:00:37]} (21. Bxe4 $2 Rxd2 22. Rxd2 hxg5 $19) 21... h5 {[%emt 0:00:05]} 22. Ng5 {[%emt 0:03:46]} hxg4 {[%emt 0:05:48]} 23. Bf4 {[%emt 0:00:10]} (23. hxg4 Bxg4 24. f3 Bf5+ 25. Ka1 Rh4 $17) 23... Bf5+ {[%emt 0:02:33]} (23... gxh3 $6 24. Nf7 Rdf8 (24... Bf5+ 25. Ka1 $16) 25. Bxe5+ Bxe5 26. Nxe5 $16) ({Black should try} 23... Rhf8 $1 $15 24. Bg3 gxh3) 24. Ka1 $11 {[%emt 0:00:16]} Rd6 {[%emt 0:01:53]} (24... gxh3 25. Nf7 a5 (25... Rxd5 $2 26. Rxd5 Rh4 27. Bg3 $18) 26. Nxe5 $18 (26. Bxe5+ Bxe5 27. Nxe5 h2 $11)) (24... e6 $1 $11 {remains equal.} 25. Nf7 (25. Bxe6 Rxd2 26. Rxd2 gxh3 $17) (25. Nxe6 Bxe6 26. Bxe6 Rxd2 $15) 25... exd5 (25... Rxd5 26. Nxh8 Bxh8 27. hxg4 $14) 26. Nxe5 Ka8) 25. hxg4 {[%emt 0:00:50]} Bxg4 {[%emt 0:00:38] [#]} 26. Re1 {[%emt 0:00:57]} (26. f3 $1 $16 {[%cal Rf3g4]} Rf8 27. Nf7 (27. Bxe5 Bxe5 28. fxg4 Bf4 $11) 27... Nxf7 (27... Rxf7 $2 28. Bxf7 Nxf3 29. Bxd6+ $18) (27... Bxf3 28. Nxe5 Rxf4 29. Nxf3 $11) (27... Nxf3 28. Bxf3 Bxf3 29. Rxd6 $18) 28. Bxd6+ (28. fxg4 Be5 $11) 28... Nxd6 29. fxg4) 26... Ka8 $2 {[%emt 0:03:46]} (26... e6 $1 $11 {and Black has nothing to worry.}) 27. a3 {[%emt 0:02:09]} (27. Rxe5 $2 Bxe5 (27... Rxd5 28. Rexd5 Rh1+ 29. Rd1 $15) 28. Bxe5 Rxd5 29. Bxh8 Rxd2 $19) 27... Rhd8 {[%emt 0:01:01]} 28. Bxe5 {[%emt 0:00:00]} Bxe5 {[%emt 0:01:21]} (28... Rxd5 $2 29. Rxd5 Rxd5 30. Bxg7 $18) 29. Rxe5 {[%emt 0:00:00]} e6 {[%emt 0:01:06] [#]} 30. Bxe6 $1 {[%emt 0:00:50]} (30. Nxe6 $6 Bxe6 31. Rxe6 Rxe6 32. Bxb7+ Kxb7 $16) 30... Rxd2 {[%emt 0:00:00]} 31. Bxg4 {[%emt 0:00:02]} Rxf2 {[%emt 0:00:00]} 32. Bf3 {[%emt 0:00:43]} Rfd2 {[%emt 0:00:00]} (32... a5 $16) 33. Ne6 $18 {[%emt 0:00:45]} Rg8 $2 {[%emt 0:01:28]} (33... R8d6 {was necessary.} 34. Nc5 Kb8) 34. Rb5 $18 {[%emt 0:00:18]} Rd7 {[%emt 0:01:02]} 35. Nc5 {[%emt 0:00:13]} a6 {[%emt 0:00:04]} 36. Rb6 {[%emt 0:00:30]} ({Not} 36. Nxa6 Re7 37. Nc5 Rgg7 $18) 36... Rdd8 {[%emt 0:00:58]} 37. Bxb7+ {[%emt 0:00:30]} (37. Rxb7 $142 Rdf8 38. Be4 (38. Rf7+ Kb8 $18) 38... Rf1+ 39. Ka2) 37... Ka7 {[%emt 0:00:05]} 38. Rxa6+ {[%emt 0:00:06]} Kb8 {[%emt 0:00:02]} 39. Ra8+ {[%emt 0:00:24]} Kc7 {[%emt 0:00:04]} 40. Ne6+ {[%emt 0:00:00]} *

[Event "85th Armenian Mens-ch 2024"]
[Site "Yerevan"]
[Date "2024.11.27"]
[Round "11.4"]
[White "Gharibyan, Mamikon"]
[Black "Shahinyan, Vladimir"]
[Result "1-0"]
[ECO "B30"]
[WhiteElo "2462"]
[BlackElo "2161"]
[Annotator "TA"]
[PlyCount "45"]
[EventDate "2024.11.24"]
[EventCountry "ARM"]
[SourceTitle "playchess.com"]
[Source "ChessBase"]
[SourceQuality "1"]
[TimeControl "40/5400+30:1800+30"]

{[%evp 9,45,11,58,53,66,14,8,13,10,4,7,7,115,113,170,166,282,276,504,510,953,945,914,918,1228,1198,1151,1013,1216,1168,1341,1370,1330,1246,1101,1083,1626,1478]} 1. e4 {[%emt 0:01:24]} c5 {[%emt 0:00:39]} 2. Nf3 {[%emt 0:00:06]} Nc6 {[%emt 0:00:06]} 3. Bb5 {[%emt 0:00:04]} e6 {[%emt 0:00:08]} 4. O-O {[%emt 0:00:05]} Nge7 {[%emt 0:00:03]} 5. Re1 {[%emt 0:00:05]} b6 {[%emt 0:00:08]} (5... a6 $11 6. Bf1 d5) 6. c3 $14 {[%emt 0:00:04][%cal Bc2c3,Bc3c4][%mdl 32]} a6 {[%emt 0:02:05]} 7. Bxc6 {[%emt 0:00:06]} (7. Ba4 $14) 7... Nxc6 $11 {[%emt 0:00:12]} 8. d4 {[%emt 0:00:05][%cal Bd2d4,Bd4d5,Bd5d6,Bd6d7][%mdl 32] The position is equal.} d5 {[%emt 0:00:15]} 9. exd5 {[%emt 0:00:04]} Qxd5 {[%emt 0:00:04]} 10. c4 {[%emt 0:00:04]} Qf5 {[%emt 0:26:55]} (10... Qxc4 $11 {keeps the balance.} 11. b3 Qd5) 11. Nc3 $16 {[%emt 0:09:49][%cal Bb1c3,Bc3e4,Be4g3][%mdl 32] aiming for Nd5.} Be7 {[%emt 0:08:37]} (11... Nxd4 $16 12. Nxd4 cxd4) 12. d5 $18 {[%emt 0:00:55]} Nb4 {[%emt 0:01:05] [#]} (12... Nd4 $142) 13. Ne4 $1 {[%emt 0:00:55]} a5 $2 {[%emt 0:15:37]} (13... exd5 $2 {is the wrong capture.} 14. Nd6+ Kf8 15. Nxf5 $18) (13... Bb7 {might work better.} 14. Bg5 Bxd5 (14... exd5 $2 {too greedy.} 15. Nd6+ Kd7 16. Nxf5 $18)) 14. a3 {[%emt 0:00:14] White is clearly winning.} Na6 {[%emt 0:00:03]} (14... O-O $142 15. axb4 cxb4) 15. d6 {[%emt 0:00:08]} Bf8 {[%emt 0:00:01]} 16. Ng3 {[%emt 0:01:22]} Qf6 {[%emt 0:00:03]} 17. Bg5 {[%emt 0:00:13]} Qxb2 {[%emt 0:00:09]} 18. Ne5 {[%emt 0:05:09] White threatens d7+ and mate.} Nb8 {[%emt 0:00:07]} 19. Qf3 {[%emt 0:04:15][%csl LRa8,LRf7]} Ra7 {[%emt 0:00:03] [#]} 20. d7+ $1 {[%emt 0:00:04][%mdl 512]} Rxd7 {[%emt 0:00:04]} 21. Nxd7 {[%emt 0:00:03]} Bxd7 {[%emt 0:00:05]} 22. Rab1 {[%emt 0:00:19]} Qd4 {[%emt 0:03:12]} 23. Rxb6 {[%emt 0:00:15] Weighted Error Value: White=0.07 (flawless) /Black=0.93.  Mistake:       	White=1     	Black=5      OK:         	White=5     	Black=3      Best:        	White=1     	---        Strong:       	White=1     	---} 1-0

[Event "85th Armenian Mens-ch 2024"]
[Site "Yerevan"]
[Date "2024.12.04"]
[Round "11.4"]
[White "Gharibyan, Mamikon"]
[Black "Shahinyan, Vladimir"]
[Result "1-0"]
[ECO "B52"]
[WhiteElo "2462"]
[BlackElo "2161"]
[Annotator "TA"]
[PlyCount "79"]
[EventDate "2024.11.24"]
[EventCountry "ARM"]
[SourceTitle "playchess.com"]
[Source "ChessBase"]
[SourceQuality "1"]
[TimeControl "40/5400+30:1800+30"]

{[%evp 23,79,37,39,28,36,34,48,25,16,33,30,25,22,37,52,28,71,70,68,82,83,69,76,92,85,79,193,196,191,202,182,200,198,185,212,210,207,209,216,216,233,226,262,255,259,256,251,230,243,241,254,254,268,263,266,240,333,326]} 1. e4 {[%emt 0:00:18]} c5 {[%emt 0:00:15]} 2. Nf3 {[%emt 0:00:05]} d6 {[%emt 0:00:13]} 3. Bb5+ {[%emt 0:00:16]} Bd7 {[%emt 0:02:44]} 4. Bxd7+ {[%emt 0:00:31]} Qxd7 {[%emt 0:00:06]} 5. c4 {[%emt 0:00:05]} Nf6 {[%emt 0:02:48]} 6. Nc3 {[%emt 0:00:35]} g6 {[%emt 0:00:08]} 7. d4 {[%emt 0:00:35]} cxd4 {[%emt 0:00:45]} 8. Nxd4 {[%emt 0:00:06]} Bg7 {[%emt 0:00:42]} 9. f3 {[%emt 0:01:53]} O-O {[%emt 0:01:55]} 10. Be3 {[%emt 0:00:21]} Nc6 {[%emt 0:15:50]} 11. O-O {[%emt 0:03:02]} Rac8 {[%emt 0:00:38]} 12. b3 {[%emt 0:03:05]} e6 {[%emt 0:14:24]} 13. Rc1 {[%emt 0:05:33]} Rfd8 {[%emt 0:05:16]} 14. Re1 {[%emt 0:11:09]} d5 {[%emt 0:07:30]} 15. cxd5 {[%emt 0:20:04]} exd5 {[%emt 0:00:07]} 16. Nxc6 {[%emt 0:00:22]} bxc6 {[%emt 0:02:11]} 17. e5 {[%emt 0:51:00][%cal Be4e5,Be5e6][%mdl 32]} Ne8 {[%emt 0:43:28]} 18. Bg5 {[%emt 0:00:30][%cal Be3g5,Bg5h4,Bh4f2,Bf2d4,Bd4f6][%mdl 32]} f6 {[%emt 0:00:30]} 19. Bh4 $36 {[%emt 0:00:30][%mdl 2048] White has some pressure.} g5 {[%emt 0:00:30]} 20. e6 {[%emt 0:00:30]} Qe7 {[%emt 0:00:30]} 21. Bf2 {[%emt 0:00:30]} d4 {[%emt 0:00:30]} 22. Na4 {[%emt 0:00:30][%cal Oa4c5]} (22. Bxd4 $2 f5 $19 (22... c5 $2 23. f4 $19)) 22... c5 {[%emt 0:00:30]} 23. Qd3 {[%emt 0:00:00]} Bf8 {[%emt 0:00:00]} 24. Qa6 {[%emt 0:00:00] White is much more active.} Ng7 {[%emt 0:00:00] [#]} (24... h5 $16) 25. Bxd4 $1 $18 {[%emt 0:00:00][%mdl 512]} Qd6 {[%emt 0:00:00]} 26. Qxd6 {[%emt 0:00:00]} (26. Nxc5 $2 {is the wrong capture.} Qxd4+ 27. Kh1 Rxc5 $19 (27... Bxc5 $2 28. e7 $19)) 26... Rxd6 {[%emt 0:00:00]} 27. Rxc5 {[%emt 0:00:00]} Re8 {[%emt 0:00:00]} 28. Bxf6 {[%emt 0:00:00]} Rexe6 {[%emt 0:00:00]} 29. Rxe6 {[%emt 0:00:00]} Nxe6 {[%emt 0:00:00]} 30. Rc2 {[%emt 0:00:00]} Rd1+ {[%emt 0:00:00]} 31. Kf2 {[%emt 0:00:00]} Rh1 {[%emt 0:00:00]} 32. Be5 {[%emt 0:00:00]} Bg7 {[%emt 0:01:04]} 33. Bxg7 {[%emt 0:00:00]} Kxg7 {[%emt 0:00:05][%mdl 4096] Endgame KRN-KRN. White is two pawns up.} 34. Nc5 {[%emt 0:00:00]} Nf4 {[%emt 0:00:08]} 35. Ne4 {[%emt 0:00:00]} h6 {[%emt 0:01:01]} 36. Ng3 {[%emt 0:00:00]} Ra1 {[%emt 0:01:18]} 37. Rd2 {[%emt 0:00:00]} Kf6 {[%emt 0:01:37]} 38. Ne2 {[%emt 0:00:00]} Ne6 {[%emt 0:00:07]} 39. Nc3 {[%emt 0:00:00]} Ke5 {[%emt 0:00:47]} 40. Rd5+ {[%emt 0:06:47]} 1-0